bitfinex/quotes_BTCUSD_20260104
["timestamp","ask_amount","ask_price","bid_price","bid_amount"]
[1767516110348,0.01095242,91304.0,91301.0,0.06571651]
[1767516110700,0.04873234,91303.0,91301.0,0.0099089]
[1767516110905,0.04873234,91303.0,91301.0,0.06467232]
[1767516111262,0.02192,91305.0,91303.0,0.01089052]
[1767516111455,0.01095206,91307.0,91304.0,0.06571453]
[1767516111831,0.02192,91307.0,91304.0,0.06571453]
[1767516112425,0.02192,91307.0,91302.0,0.05476323]
[1767516112426,0.0876324,91307.0,91302.0,0.05476323]
[1767516112577,0.05476141,91306.0,91302.0,0.05476306]
[1767516112978,0.05476141,91306.0,91303.0,0.04869026]
[1767516113827,0.06571359,91306.0,91303.0,0.04869026]
[1767516114056,0.01095302,91299.0,91290.0,0.0109541]
[1767516114231,0.01095338,91296.0,91292.0,0.01095386]
[1767516114528,0.01095338,91296.0,91291.0,0.06572337]
[1767516114529,0.06572044,91296.0,91291.0,0.06572337]
[1767516114733,0.05476764,91295.0,91291.0,0.06572337]
[1767516114911,0.01095446,91287.0,91282.0,0.06572983]
[1767516115078,0.04873234,91298.0,91283.0,0.06572928]
[1767516115079,0.01095434,91288.0,91283.0,0.06572928]
[1767516115279,0.01095446,91287.0,91283.0,0.06572928]
[1767516115480,0.01095434,91288.0,91284.0,0.06572889]
[1767516115728,0.06572534,91289.0,91285.0,0.06572821]
[1767516115929,0.01095422,91289.0,91285.0,0.06572821]
[1767516116129,0.0657258,91290.0,91286.0,0.01095458]
[1767516116587,0.0109535,91295.0,91282.0,0.25197439]
[1767516116588,0.03914756,91343.0,91282.0,0.02192]
[1767516116788,0.0001518,91363.0,91342.0,0.01094786]
[1767516116979,0.0001518,91363.0,91350.0,0.0109469]
[1767516116980,0.01588238,91362.0,91350.0,0.0109469]
[1767516117117,0.12552938,91360.0,91350.0,0.00010839]
[1767516117319,0.03784238,91359.0,91351.0,0.01094678]
[1767516117572,0.04873234,91358.0,91351.0,0.06568021]
[1767516117701,0.04873234,91358.0,91342.0,0.21895013]
[1767516117900,0.04884067,91358.0,91354.0,0.01094642]
[1767516118216,0.01600822,91358.0,91355.0,0.0109463]
[1767516118457,0.00010833,91358.0,91346.0,0.04696969]
[1767516118632,0.05483823,91358.0,91349.0,0.01094702]
[1767516118815,0.05473094,91356.0,91350.0,0.0109469]
[1767516119018,0.0109463,91355.0,91350.0,0.0109469]
[1767516119355,0.01094606,91357.0,91351.0,0.06568071]
[1767516119530,0.01105427,91358.0,91352.0,0.06567976]
[1767516119724,0.00010833,91358.0,91351.0,0.01094678]
[1767516120004,0.00010833,91358.0,91339.0,0.218963]
[1767516120005,0.01094654,91353.0,91344.0,0.01094762]
[1767516120171,0.01094654,91353.0,91332.0,0.00065199]
[1767516120172,0.0656838,91347.0,91334.0,0.01094882]
[1767516120368,0.15837934,91344.0,91338.0,0.06568963]
[1767516120580,0.05470774,91343.0,91337.0,0.01094846]
[1767516120770,0.04376,91343.0,91338.0,0.01094834]
[1767516121093,0.05470774,91343.0,91338.0,0.01094834]
[1767516121327,0.06568946,91339.0,91330.0,0.06569551]
[1767516121527,0.03290834,91338.0,91333.0,0.01094894]
[1767516121655,0.02196,91338.0,91334.0,0.01094882]
[1767516122069,0.03290834,91338.0,91333.0,0.01094894]
[1767516122290,0.02196,91338.0,91332.0,0.00065199]
[1767516122472,0.03290834,91338.0,91332.0,0.00065199]
[1767516122668,0.02196,91338.0,91334.0,0.01094882]
[1767516122872,0.03290834,91338.0,91332.0,0.01160105]
[1767516123107,0.03290834,91338.0,91334.0,0.01094882]
[1767516123433,0.02196,91338.0,91334.0,0.01094882]
[1767516123766,0.02196,91338.0,91335.0,0.0109487]
[1767516123956,0.02196,91338.0,91335.0,0.0106635]
[1767516124412,0.020961,91338.0,91334.0,0.01094882]
[1767516124819,0.020961,91338.0,91332.0,0.01160105]
[1767516124820,0.000999,91334.0,91332.0,0.00065199]
[1767516125223,0.05474436,91334.0,91332.0,0.00065199]
[1767516125787,0.05474436,91334.0,91332.0,9.9e-07]
[1767516129558,0.05474433,91334.0,91332.0,9.9e-07]
[1767516133045,0.05474472,91333.0,91332.0,9.9e-07]
[1767516133654,0.05409372,91333.0,91332.0,9.9e-07]
[1767516137907,0.01094918,91331.0,91328.0,0.04994813]
[1767516138090,0.01196048,91330.0,91328.0,0.04994813]
[1767516138718,0.01196048,91330.0,91329.0,0.04994813]
[1767516139538,0.01196048,91330.0,91329.0,0.10469525]
[1767516139921,0.01196048,91330.0,91329.0,0.04894913]
[1767516140801,0.01096148,91330.0,91329.0,0.04894913]
[1767516141704,0.02191078,91330.0,91327.0,0.04994813]
[1767516141904,0.07665768,91330.0,91327.0,0.04994813]
[1767516142759,0.02191078,91330.0,91327.0,0.04994813]
[1767516143561,0.01096148,91330.0,91327.0,0.04994813]
[1767516144044,0.07665749,91330.0,91327.0,0.04994813]
[1767516144385,0.02191078,91330.0,91327.0,0.04994813]
[1767516146432,0.02191078,91330.0,91327.0,0.04913489]
[1767516146433,0.01096148,91330.0,91327.0,0.04913489]
[1767516146874,0.02191078,91330.0,91327.0,0.04913489]
[1767516147312,0.01096148,91330.0,91328.0,0.04994813]
[1767516147692,0.01094918,91331.0,91328.0,0.04994813]
[1767516147894,0.06572,91330.0,91329.0,0.04994813]
[1767516148318,0.06572,91330.0,91329.0,0.10870871]
[1767516149403,0.03151854,91330.0,91328.0,0.04994813]
[1767516150083,0.08626543,91330.0,91328.0,0.04994813]
[1767516150292,0.08626543,91330.0,91328.0,0.04894913]
[1767516150293,0.03151854,91330.0,91328.0,0.04894913]
[1767516151021,0.03910784,91329.0,91328.0,0.0452472]
[1767516151219,0.04376,91329.0,91327.0,0.06569795]
[1767516152307,0.04376,91329.0,91327.0,0.06565398]
[1767516153435,0.01933423,91330.0,91327.0,0.06565398]
[1767516153436,0.0014,91330.0,91329.0,0.05474712]
[1767516153640,0.06712,91330.0,91329.0,0.05474712]
[1767516154365,0.0014,91330.0,91329.0,0.05474712]
[1767516154590,0.06712,91330.0,91327.0,0.05474829]
[1767516154826,0.06712,91330.0,91328.0,0.0547472]
[1767516155187,0.06572,91329.0,91328.0,0.0547472]
[1767516156164,0.000999,91328.0,91326.0,0.01094978]
[1767516156369,0.000999,91328.0,91327.0,0.05474832]
[1767516156570,0.01,91327.0,91323.0,0.01095014]
[1767516156819,0.06569727,91328.0,91323.0,0.06570063]
[1767516157019,0.01094954,91328.0,91324.0,0.01090605]
[1767516157263,0.06572,91329.0,91325.0,0.0109499]
[1767516157463,0.13141674,91329.0,91324.0,0.06565606]
[1767516158155,0.13141674,91329.0,91325.0,0.0109499]
[1767516158591,0.13141674,91329.0,91325.0,0.01090593]
[1767516159421,0.06572,91329.0,91326.0,0.01094978]
[1767516159850,0.06572,91329.0,91322.0,0.01095026]
[1767516159851,0.000999,91326.0,91322.0,0.05808852]
[1767516160006,0.01014415,91326.0,91323.0,0.06570028]
[1767516160211,0.01,91326.0,91323.0,0.06570028]
[1767516160634,0.01094954,91328.0,91324.0,0.06569996]
[1767516161042,0.01094954,91328.0,91324.0,0.01095002]
[1767516161430,0.13141706,91329.0,91324.0,0.06569991]
[1767516161630,0.13141706,91329.0,91325.0,0.0109499]
[1767516161836,0.07666942,91329.0,91325.0,0.0108059]
[1767516162222,0.06572,91329.0,91325.0,0.06555487]
[1767516163980,0.01094966,91327.0,91324.0,0.04713826]
[1767516164396,0.06569821,91327.0,91324.0,0.04713826]
[1767516164736,0.06569811,91327.0,91324.0,0.04713826]
[1767516165336,0.06569811,91327.0,91285.0,0.012]
[1767516165337,0.01095038,91321.0,91307.0,0.00048377]
[1767516165542,0.0109511,91315.0,91308.0,0.04713826]
[1767516165877,0.0646644,91313.0,91309.0,0.04713826]
[1767516166055,0.02196,91312.0,91309.0,0.04713826]
[1767516166447,0.01095158,91311.0,91307.0,0.01143583]
[1767516166597,0.0719052,91312.0,91308.0,0.06571123]
[1767516166804,0.0719052,91312.0,91309.0,0.06571093]
[1767516167004,0.0719052,91312.0,91309.0,0.06571087]
[1767516167211,0.0719052,91312.0,91309.0,0.01095182]
[1767516167624,0.0719052,91312.0,91309.0,0.04713826]
[1767516167825,0.0719052,91312.0,91309.0,0.05809008]
[1767516168073,0.0719052,91312.0,91309.0,0.04713826]
[1767516168282,0.0719052,91312.0,91309.0,0.05809008]
[1767516169643,0.0719052,91312.0,91309.0,0.04713826]
[1767516169863,0.08285666,91312.0,91307.0,0.01143583]
[1767516170031,0.13761449,91312.0,91307.0,0.01143583]
[1767516170433,0.13761449,91312.0,91307.0,0.06619598]
[1767516170668,0.01095158,91311.0,91307.0,0.01143583]
[1767516170868,0.13761449,91312.0,91307.0,0.06619611]
[1767516171785,0.0657095,91311.0,91307.0,0.00048377]
[1767516171947,0.01095158,91311.0,91307.0,0.01143583]
[1767516172532,0.01095158,91311.0,91307.0,0.00048377]
[1767516172735,0.13761449,91312.0,91307.0,0.00048377]
[1767516172736,0.08285666,91312.0,91307.0,0.00048377]
[1767516172947,0.01095158,91311.0,91307.0,0.00048377]
[1767516173261,0.03291146,91312.0,91303.0,0.01095254]
[1767516173262,0.0109523,91305.0,91303.0,0.04713826]
[1767516173471,0.06572,91304.0,91303.0,0.04713826]
[1767516174976,0.06572,91304.0,91301.0,0.06571634]
[1767516174977,0.00280694,91303.0,91301.0,0.06571634]
[1767516175197,0.00280694,91303.0,91301.0,0.1128546]
[1767516176319,0.00280694,91303.0,91301.0,0.04713826]
[1767516176856,0.00232318,91303.0,91301.0,0.10190214]
[1767516177573,0.00232318,91303.0,91301.0,0.05476388]
[1767516177574,0.00227829,91303.0,91301.0,0.05476388]
[1767516177924,0.01323083,91303.0,91299.0,0.01095302]
[1767516178096,0.00227829,91303.0,91300.0,0.0109529]
[1767516179505,0.00227829,91303.0,91300.0,0.06571692]
[1767516179844,0.00227829,91303.0,91299.0,0.06571803]
[1767516180200,0.01323083,91303.0,91299.0,0.01095302]
[1767516180405,0.00227829,91303.0,91300.0,0.0109529]
[1767516180854,0.00227829,91303.0,91300.0,0.06571713]
[1767516180988,0.00227829,91303.0,91301.0,0.05476376]
[1767516182384,0.00227829,91303.0,91302.0,0.05476331]
[1767516182563,0.00227829,91303.0,91302.0,0.10153493]
[1767516183656,0.01143522,91312.0,91308.0,0.01095194]
[1767516183854,0.06572,91311.0,91308.0,0.06571159]
[1767516184057,0.06572,91311.0,91309.0,0.05475895]
[1767516184459,0.06572,91311.0,91308.0,0.06571159]
[1767516185459,0.06572,91311.0,91308.0,0.06607304]
[1767516188993,0.06572,91311.0,91309.0,0.05475908]
[1767516189400,0.06572,91311.0,91309.0,0.05475909]
[1767516189801,0.06572,91311.0,91309.0,0.05475891]
[1767516190000,0.06572,91311.0,91308.0,0.06607304]
[1767516190196,0.00048376,91312.0,91309.0,0.01095182]
[1767516190397,0.06568,91311.0,91308.0,0.01131339]
[1767516190605,0.06568,91311.0,91308.0,0.0660727]
[1767516190769,0.0661927,91312.0,91308.0,0.00036145]
[1767516190970,0.06570964,91311.0,91308.0,0.00036145]
[1767516191589,0.06568,91310.0,91308.0,0.00036145]
[1767516191804,0.06570964,91311.0,91308.0,0.00036145]
[1767516192009,0.06568,91309.0,91308.0,0.00036145]
[1767516192214,0.06570964,91311.0,91308.0,0.00036145]
[1767516192620,0.02192,91310.0,91308.0,0.00036145]
[1767516192931,0.06568,91309.0,91308.0,0.00036145]
[1767516193142,0.06570964,91311.0,91308.0,0.00036145]
[1767516193502,0.06568,91310.0,91308.0,0.00036145]
[1767516193779,0.06570964,91311.0,91308.0,0.00036145]
[1767516193908,0.02192,91309.0,91308.0,0.00036145]
[1767516194108,0.05475867,91310.0,91308.0,0.00036145]
[1767516194513,0.06568,91309.0,91308.0,0.00036145]
[1767516195251,0.06568,91309.0,91308.0,4.5e-07]
[1767516196619,0.065319,91309.0,91308.0,4.5e-07]
[1767516197245,0.00999999,91307.0,91305.0,0.0109523]
[1767516197454,0.00999999,91307.0,91302.0,0.11248708]
[1767516197663,0.000999,91305.0,91302.0,0.05772428]
[1767516197830,0.00999999,91307.0,91302.0,0.05772428]
[1767516198031,0.06476071,91307.0,91302.0,0.11248713]
[1767516198475,0.00999999,91307.0,91303.0,0.01095254]
[1767516198840,0.07571239,91307.0,91303.0,0.01095254]
[1767516199044,0.0657124,91307.0,91303.0,0.01095254]
[1767516199462,0.06571238,91307.0,91303.0,0.01095254]
[1767516199669,0.06571238,91307.0,91302.0,0.06571551]
[1767516199868,0.01095314,91298.0,91293.0,0.01095374]
[1767516200075,0.02192,91297.0,91294.0,0.0112139]
[1767516200275,0.02192,91297.0,91296.0,0.05476691]
[1767516200600,0.01885465,91297.0,91295.0,0.054767]
[1767516200790,0.01885465,91297.0,91295.0,0.05476736]
[1767516200956,0.01820361,91297.0,91294.0,0.06598187]
[1767516201345,0.01820361,91297.0,91294.0,0.00026028]
[1767516202295,0.01820361,91297.0,91294.0,0.0112139]
[1767516203583,0.01820361,91297.0,91294.0,0.0659815]
[1767516203776,0.01820361,91297.0,91295.0,0.05476746]
[1767516204212,0.000999,91295.0,91294.0,0.0112139]
[1767516204822,0.01820361,91297.0,91294.0,0.0470319]
[1767516204990,0.01820361,91297.0,91294.0,0.05798552]
[1767516205689,0.01820361,91297.0,91295.0,0.05476738]
[1767516205881,0.01820361,91297.0,91294.0,0.11275317]
[1767516208271,0.01820361,91297.0,91295.0,0.04677162]
[1767516208545,0.01820361,91297.0,91295.0,0.04577262]
[1767516208912,0.01720461,91297.0,91295.0,0.04577262]
[1767516209109,0.01720461,91297.0,91295.0,0.10053964]
[1767516209848,0.05901909,91297.0,91296.0,0.05476691]
[1767516210091,0.05901909,91297.0,91296.0,0.10153853]
[1767516210636,0.01095206,91307.0,91296.0,0.10153853]
[1767516210637,0.01095134,91313.0,91302.0,0.04578101]
[1767516210954,0.01095182,91309.0,91305.0,0.0109523]
[1767516211184,0.06571033,91310.0,91305.0,0.0109523]
[1767516211556,0.13139005,91311.0,91306.0,0.06571272]
[1767516212482,0.13139005,91311.0,91303.0,0.21905057]
[1767516212887,0.0109517,91310.0,91306.0,0.01095218]
[1767516213084,0.13139005,91311.0,91306.0,0.06571298]
[1767516213241,0.13139005,91311.0,91307.0,0.01095206]
[1767516213437,0.06568,91310.0,91303.0,0.21905057]
[1767516213880,0.06568,91310.0,91307.0,0.05476027]
[1767516214889,0.06568,91310.0,91307.0,0.06571233]
[1767516215038,0.06568,91310.0,91306.0,0.065713]
[1767516215238,0.0766317,91310.0,91306.0,0.065713]
[1767516215479,0.06568,91310.0,91306.0,0.065713]
[1767516216292,0.06619363,91312.0,91306.0,0.065713]
[1767516216293,0.06619363,91312.0,91307.0,0.0547598]
[1767516216474,0.06568,91309.0,91307.0,0.06571186]
[1767516218223,0.06568,91309.0,91308.0,0.05475971]
[1767516218853,0.06559204,91309.0,91308.0,0.05475971]
[1767516219048,0.04376,91323.0,91318.0,0.03859878]
[1767516219339,0.04810747,91335.0,91324.0,0.0547496]
[1767516219340,0.06569761,91329.0,91324.0,0.0547496]
[1767516219640,0.04376,91328.0,91327.0,0.05474832]
[1767516219841,0.00999999,91327.0,91325.0,0.0109499]
[1767516219987,0.02192,91326.0,91325.0,0.06569926]
[1767516220345,0.0014,91330.0,91324.0,0.01095002]
[1767516220517,0.01568,91326.0,91325.0,0.06569942]
[1767516222606,0.014681,91326.0,91325.0,0.06569942]
[1767516222819,0.014681,91326.0,91325.0,0.06541425]
[1767516224055,0.01459304,91326.0,91325.0,0.06541425]
[1767516224784,0.06568,91329.0,91328.0,0.05474772]
[1767516225010,0.06568,91329.0,91328.0,0.05374872]
[1767516226588,0.0014,91330.0,91329.0,0.05474712]
[1767516226786,0.04376,91332.0,91330.0,0.05474606]
[1767516227352,0.04376,91332.0,91329.0,0.06569654]
[1767516227549,0.02192,91331.0,91329.0,0.06569654]
[1767516227759,0.01094882,91334.0,91330.0,0.06569579]
[1767516227960,0.02192,91333.0,91331.0,0.06569499]
[1767516228164,0.02192,91333.0,91330.0,0.06569579]
[1767516228165,0.06568,91333.0,91330.0,0.06569579]
[1767516228570,0.06568,91333.0,91331.0,0.05474583]
[1767516229488,0.06459301,91333.0,91332.0,0.05474532]
[1767516229719,0.06459301,91333.0,91331.0,0.05474583]
[1767516230393,0.06459301,91333.0,91332.0,0.05474532]
[1767516230627,0.0109481,91340.0,91336.0,0.01094858]
[1767516230832,0.04810747,91338.0,91336.0,0.01564623]
[1767516231036,0.01568,91339.0,91338.0,0.05474172]
[1767516231233,0.03136,91339.0,91338.0,0.10331076]
[1767516231391,0.01094774,91343.0,91339.0,0.06568928]
[1767516231392,0.04376,91341.0,91339.0,0.06568928]
[1767516231593,0.04376,91341.0,91338.0,0.05374272]
[1767516231834,0.02192,91340.0,91338.0,0.05374272]
[1767516232009,0.02183201,91340.0,91338.0,0.05374272]
[1767516232434,0.02183201,91340.0,91339.0,0.05474112]
[1767516232644,0.02183201,91340.0,91338.0,0.05374272]
[1767516234106,0.02183201,91340.0,91337.0,0.06569074]
[1767516234308,0.02176334,91340.0,91337.0,0.06569074]
[1767516234937,0.02176334,91340.0,91337.0,0.01094846]
[1767516235262,0.02176334,91340.0,91337.0,0.06569026]
[1767516235669,0.08745219,91340.0,91336.0,0.06569101]
[1767516235871,0.08745219,91340.0,91335.0,0.06569221]
[1767516236010,0.06569044,91338.0,91334.0,0.01094882]
[1767516236211,0.06568957,91339.0,91335.0,0.05474335]
[1767516236442,0.06568957,91339.0,91335.0,0.0109487]
[1767516236821,0.06569011,91338.0,91334.0,0.06569278]
[1767516237039,0.06569082,91337.0,91332.0,0.0547448]
[1767516237241,0.01094846,91337.0,91331.0,0.06051722]
[1767516237688,0.06569087,91337.0,91333.0,0.01094894]
[1767516237909,0.01094846,91337.0,91333.0,0.06569336]
[1767516238257,0.06569038,91338.0,91333.0,0.06569336]
[1767516238457,0.01094846,91337.0,91333.0,0.06569336]
[1767516238773,0.06569038,91338.0,91334.0,0.06569277]
[1767516239382,0.01094822,91339.0,91333.0,0.01094894]
[1767516239717,0.01094846,91337.0,91333.0,0.06569365]
[1767516239896,0.06569041,91339.0,91334.0,0.06569293]
[1767516240274,0.05474238,91337.0,91333.0,0.06569358]
[1767516240521,0.01094846,91337.0,91333.0,0.01094894]
[1767516240830,0.06569008,91338.0,91333.0,0.06569314]
[1767516241204,0.01087967,91338.0,91334.0,0.06569253]
[1767516241386,0.06569013,91338.0,91334.0,0.01094882]
[1767516241572,0.06560213,91338.0,91334.0,0.01094882]
[1767516242212,0.01086034,91338.0,91334.0,0.06569288]
[1767516242529,0.06569078,91337.0,91333.0,0.01094894]
[1767516242753,0.06569078,91337.0,91333.0,0.06569363]
[1767516242958,0.05374339,91337.0,91333.0,0.06569353]
[1767516243926,0.01094846,91337.0,91334.0,0.05474412]
[1767516244250,0.06569006,91338.0,91334.0,0.05474412]
[1767516244251,0.06569006,91338.0,91334.0,0.06569287]
[1767516244592,0.01094834,91338.0,91335.0,0.05474352]
[1767516244794,0.06569018,91338.0,91334.0,0.06569287]
[1767516245233,0.06568952,91339.0,91334.0,0.06569287]
[1767516245818,0.01094822,91339.0,91335.0,0.06569212]
[1767516246037,0.08745298,91340.0,91336.0,0.06569129]
[1767516246237,0.02176334,91340.0,91337.0,0.01094846]
[1767516246663,0.05474154,91339.0,91335.0,0.0109487]
[1767516246842,0.000999,91337.0,91334.0,0.06569276]
[1767516247228,0.05474174,91338.0,91334.0,0.06569276]
[1767516247650,0.05467317,91338.0,91334.0,0.06569276]
[1767516247870,0.06562151,91338.0,91334.0,0.06569276]
[1767516248265,0.01094858,91336.0,91332.0,0.06569393]
[1767516248599,0.06569086,91337.0,91333.0,0.06569337]
[1767516249308,0.06569009,91338.0,91334.0,0.05474389]
[1767516249491,0.01094846,91337.0,91333.0,0.06569337]
[1767516250575,0.01086045,91337.0,91333.0,0.06569337]
[1767516251080,0.0656029,91337.0,91333.0,0.06569337]
[1767516251244,0.01086045,91337.0,91334.0,0.05474395]
[1767516252223,0.01094822,91339.0,91334.0,0.06569277]
[1767516252340,0.01094822,91339.0,91335.0,0.06569178]
[1767516252541,0.08745239,91340.0,91336.0,0.06569145]
[1767516252752,0.05474121,91339.0,91336.0,0.01094858]
[1767516252961,0.02176334,91340.0,91337.0,0.01094846]
[1767516253321,0.02176334,91340.0,91338.0,0.05474124]
[1767516253618,0.02176334,91340.0,91339.0,0.05474112]
[1767516253765,0.01176334,91340.0,91339.0,0.05474112]
[1767516254268,0.01176334,91340.0,91338.0,0.05474124]
[1767516254768,0.01176334,91340.0,91337.0,0.06568966]
[1767516256646,0.01176334,91340.0,91338.0,0.05474142]
[1767516257243,0.01176334,91340.0,91337.0,0.06568966]
[1767516258895,0.01176334,91340.0,91338.0,0.05474141]
[1767516259110,0.02271144,91340.0,91336.0,0.06569148]
[1767516259316,0.06568942,91339.0,91335.0,0.0109487]
[1767516259528,0.01094822,91339.0,91336.0,0.06569137]
[1767516259816,0.01094822,91339.0,91334.0,0.06569284]
[1767516259817,0.06569019,91338.0,91334.0,0.06569284]
[1767516259980,0.010999,91336.0,91333.0,0.01094894]
[1767516260404,0.01,91336.0,91333.0,0.01094894]
[1767516261001,0.01094906,91332.0,91328.0,0.06569716]
[1767516261251,0.02192,91331.0,91330.0,0.05474652]
[1767516261456,0.02187512,91331.0,91330.0,0.05474652]
[1767516265515,0.06569118,91338.0,91334.0,0.06569264]
[1767516265717,0.02192,91337.0,91334.0,0.06569264]
[1767516265924,0.07666234,91337.0,91334.0,0.06569264]
[1767516266126,0.0876108,91337.0,91334.0,0.01094882]
[1767516266356,0.0876108,91337.0,91334.0,0.00994982]
[1767516267371,0.06569194,91336.0,91332.0,0.06569383]
[1767516267542,0.0876108,91337.0,91333.0,0.06569362]
[1767516267747,0.03286846,91337.0,91333.0,0.06569362]
[1767516267949,0.02192,91337.0,91334.0,0.01094882]
[1767516268166,0.02192,91337.0,91334.0,0.06569249]
[1767516268534,0.020921,91337.0,91336.0,0.05474292]
[1767516275321,0.0001518,91344.0,91343.0,0.05473873]
[1767516275496,0.04376,91346.0,91343.0,0.05473873]
[1767516275497,0.04376,91346.0,91345.0,0.05473753]
[1767516275717,0.049406,91354.0,91350.0,0.06568113]
[1767516275926,0.02192,91353.0,91350.0,0.06468213]
[1767516276128,0.02192,91353.0,91351.0,0.05473378]
[1767516276437,0.02192,91353.0,91350.0,0.06468213]
[1767516277275,0.07665287,91353.0,91350.0,0.06468213]
[1767516277679,0.02192,91353.0,91350.0,0.06468213]
[1767516277874,0.03286654,91353.0,91350.0,0.0099479]
[1767516278285,0.02192,91353.0,91350.0,0.06468194]
[1767516278490,0.02192,91353.0,91350.0,0.06468243]
[1767516278739,0.02192,91353.0,91351.0,0.05473385]
[1767516278909,0.02192,91353.0,91350.0,0.06468243]
[1767516279110,0.01,91351.0,91350.0,0.06468243]
[1767516279291,0.02192,91353.0,91351.0,0.05473369]
[1767516279752,0.02192,91353.0,91350.0,0.06468243]
[1767516280282,0.02192,91353.0,91350.0,0.06468136]
[1767516280679,0.02192,91353.0,91351.0,0.05473388]
[1767516280881,0.07665275,91353.0,91350.0,0.06468136]
[1767516281288,0.02192,91353.0,91350.0,0.06468136]
[1767516282074,0.02192,91353.0,91351.0,0.05473346]
[1767516282860,0.02192,91353.0,91352.0,0.05473333]
[1767516283077,0.020921,91353.0,91352.0,0.05473333]
[1767516283663,0.020921,91353.0,91352.0,0.05468934]
[1767516288438,0.02192,91359.0,91357.0,0.05473018]
[1767516288639,0.000999,91357.0,91356.0,0.01094618]
[1767516289010,0.08759522,91359.0,91356.0,0.01094618]
[1767516289212,0.02192,91359.0,91356.0,0.01094618]
[1767516289411,0.02192,91359.0,91358.0,0.05472974]
[1767516289651,0.02192,91359.0,91358.0,0.05373074]
[1767516290433,0.020921,91359.0,91358.0,0.05373074]
[1767516291039,0.00023017,91360.0,91359.0,0.05472914]
[1767516292713,1e-08,91363.0,91362.0,0.0538208]
[1767516292828,1e-08,91363.0,91362.0,0.05377681]
[1767516295555,1e-08,91363.0,91362.0,0.05277781]
[1767516298853,1e-08,91363.0,91361.0,0.05472794]
[1767516299218,1e-08,91363.0,91361.0,0.04472794]
[1767516299443,0.0109457,91360.0,91356.0,0.06567663]
[1767516299576,0.01094546,91362.0,91357.0,0.06567628]
[1767516299781,0.06567362,91361.0,91358.0,0.01094594]
[1767516300208,0.06567408,91361.0,91357.0,0.06567628]
[1767516300412,0.06567408,91361.0,91357.0,0.01094606]
[1767516301133,0.06567427,91360.0,91356.0,0.01094618]
[1767516301341,1e-08,91363.0,91357.0,0.01094606]
[1767516301540,1e-08,91363.0,91360.0,0.0219447]
[1767516301825,0.05472743,91362.0,91360.0,0.010999]
[1767516302026,0.05472743,91362.0,91358.0,0.06567513]
[1767516302251,0.01094678,91351.0,91337.0,0.03228794]
[1767516302470,0.04826317,91351.0,91346.0,0.06568378]
[1767516302636,0.04830805,91350.0,91346.0,0.02663104]
[1767516302838,0.06568182,91350.0,91346.0,0.01094738]
[1767516303231,0.01094678,91351.0,91350.0,0.00059144]
[1767516303441,0.01094678,91351.0,91350.0,0.00054745]
[1767516303652,0.06568071,91351.0,91350.0,0.00050346]
[1767516303891,0.01094678,91351.0,91350.0,0.00050346]
[1767516304488,0.06568071,91351.0,91350.0,0.00050346]
[1767516305058,0.01094678,91351.0,91350.0,0.00050346]
[1767516305270,0.0656801,91352.0,91350.0,0.00050346]
[1767516305511,0.01094654,91353.0,91350.0,0.00050346]
[1767516305512,0.06567936,91353.0,91350.0,0.00050346]
[1767516306179,0.05473393,91351.0,91350.0,0.00050346]
[1767516306411,0.05473356,91352.0,91350.0,0.00050346]
[1767516308404,0.05473214,91354.0,91352.0,0.000999]
[1767516308600,0.05473214,91354.0,91350.0,0.06618468]
[1767516309015,0.05473214,91354.0,91351.0,0.0547339]
[1767516309218,0.06567796,91355.0,91351.0,0.0547339]
[1767516309394,0.06567796,91355.0,91350.0,0.06618468]
[1767516309869,0.06567872,91354.0,91350.0,0.06618468]
[1767516310295,0.06567872,91354.0,91350.0,0.11184747]
[1767516310505,0.06567785,91355.0,91351.0,0.06568068]
[1767516310714,0.06567726,91356.0,91354.0,0.000999]
[1767516310922,0.06567726,91356.0,91352.0,0.06567994]
[1767516311139,0.01094523,91364.0,91356.0,0.04566279]
[1767516311291,0.06567329,91362.0,91359.0,0.04614579]
[1767516311489,0.021405,91361.0,91359.0,0.04610181]
[1767516311700,0.05472854,91360.0,91359.0,0.04610181]
[1767516311873,0.07613306,91361.0,91359.0,0.04561881]
[1767516312081,0.0656744,91360.0,91357.0,0.05660885]
[1767516312514,0.0656744,91360.0,91357.0,0.04566279]
[1767516312720,0.08707864,91361.0,91360.0,0.000484]
[1767516312929,0.08707864,91361.0,91360.0,0.04566279]
[1767516313370,0.08707864,91361.0,91357.0,0.04566279]
[1767516313806,0.03235058,91361.0,91358.0,0.04566279]
[1767516314034,0.01081935,91361.0,91359.0,0.04566279]
[1767516314156,0.08759396,91362.0,91361.0,0.04566279]
[1767516314358,0.05472796,91361.0,91358.0,0.04566279]
[1767516314562,0.06567354,91361.0,91358.0,0.04566279]
[1767516314761,0.02192,91362.0,91359.0,0.05660861]
[1767516314961,0.02192,91362.0,91361.0,0.01]
[1767516315168,0.02192,91362.0,91360.0,0.04566279]
[1767516316075,0.02192,91362.0,91360.0,0.1003912]
[1767516316353,0.00724774,91362.0,91361.0,0.05472794]
[1767516316554,0.00724774,91362.0,91360.0,0.05472841]
[1767516316710,0.00724774,91362.0,91361.0,0.05472794]
[1767516318382,0.00724774,91362.0,91360.0,0.1003912]
[1767516319382,0.00724774,91362.0,91361.0,0.04566279]
[1767516320185,0.01094511,91365.0,91362.0,0.10039008]
[1767516320395,0.03286487,91367.0,91364.0,0.05660802]
[1767516320954,0.02192,91367.0,91366.0,0.05472495]
[1767516321328,0.02192,91367.0,91366.0,0.10038774]
[1767516321526,0.06566646,91371.0,91366.0,0.11133273]
[1767516321689,0.06566646,91371.0,91367.0,0.06566906]
[1767516321690,0.06602791,91371.0,91367.0,0.06566906]
[1767516321884,0.06602791,91371.0,91367.0,0.01094487]
[1767516322686,0.06602791,91371.0,91367.0,0.06566907]
[1767516323560,0.01130584,91371.0,91368.0,0.06566835]
[1767516323909,0.00036145,91371.0,91369.0,0.05472303]
[1767516324093,0.00036145,91371.0,91368.0,0.06566835]
[1767516324780,0.00036145,91371.0,91366.0,0.02542022]
[1767516324894,0.00036145,91371.0,91368.0,0.01094475]
[1767516325116,0.00036145,91371.0,91368.0,0.06566834]
[1767516327381,0.00036145,91371.0,91369.0,0.05472259]
[1767516327587,0.00036145,91371.0,91370.0,0.05472255]
[1767516328647,0.00036145,91371.0,91369.0,0.05472259]
[1767516329644,0.00036145,91371.0,91370.0,0.05472255]
[1767516330003,0.00036145,91371.0,91368.0,0.01094475]
[1767516330206,0.00036145,91371.0,91369.0,0.05472268]
[1767516331039,0.02192,91372.0,91371.0,0.05472195]
[1767516331040,0.02006835,91372.0,91371.0,0.05472195]
[1767516331206,0.02017119,91372.0,91371.0,0.05472195]
[1767516331366,0.02017119,91372.0,91370.0,0.05472255]
[1767516332172,0.02017119,91372.0,91371.0,0.05472195]
[1767516332378,0.01917219,91372.0,91371.0,0.05472195]
[1767516333397,0.01094379,91376.0,91374.0,0.04695676]
[1767516333619,6.322e-05,91376.0,91374.0,0.03595776]
[1767516335244,0.01094391,91375.0,91371.0,0.04695676]
[1767516335945,0.05472063,91374.0,91371.0,0.04695676]